fUSD/lending_fUSD_20250524
["ID","MTS","AMOUNT","RATE_DAILY","PERIOD"]
[362182204,1748070632761,-300.0,0.00029527,2]
[362182205,1748070632771,-300.0,0.00029527,2]
[362182206,1748070632780,-668.65185757,0.00029527,2]
[362182207,1748070632789,-300.0,0.00029527,2]
[362182208,1748070632799,-421.65237022,0.00029527,2]
[362182209,1748070632808,-1438.09495884,0.00029527,2]
[362182210,1748070632821,-668.65185757,0.00029527,2]
[362182211,1748070632830,-23900.0,0.00029544,2]
[362182212,1748070632839,-271.51,0.00029548,120]
[362182213,1748070632848,-150.0,0.00029588,2]
[362182214,1748070632857,-150.0,0.00029588,2]
[362182215,1748070632867,-150.0,0.00029588,2]
[362182216,1748070632876,-150.0,0.00029588,2]
[362182217,1748070632885,-534.86,0.00029607,2]
[362182218,1748070632896,-150.0,0.00029615,2]
[362182219,1748070632906,-150.0,0.00029615,2]
[362182220,1748070632915,-200.0,0.00029643,2]
[362182221,1748070632924,-200.0,0.00029643,2]
[362182222,1748070632934,-250.0,0.00029692,2]
[362182223,1748070632943,-250.0,0.00029723,2]
[362182224,1748070632953,-200.0,0.00029723,117]
[362182225,1748070632962,-986.44,0.00029754,2]
[362182226,1748070632972,-150.0,0.00029789,7]
[362182227,1748070632981,-571.15,0.000298,2]
[362182228,1748070632990,-150.0,0.00029851,2]
[362182229,1748070633000,-1000.0,0.00029852,2]
[362182230,1748070633010,-204.37030208,0.00029879,2]
[362182231,1748070633019,-24514.35440184,0.0002988,2]
[362182232,1748070633031,-332.26095277,0.0002988,2]
[362182233,1748070633043,-53369.03160759,0.0002988,2]
[362182234,1748070633055,-4031.77939814,0.0002988,2]
[362182235,1748070633084,-416.14415218,0.0002988,2]
[362182236,1748070633164,-998.51788266,0.0002988,2]
[362182237,1748070633176,-1890.37804651,0.0002988,2]
[362182238,1748070638248,-3641.60303,0.0002988,2]
[362182239,1748070638260,-2281.87364935,0.0002988,2]
[362182240,1748070638384,-3918.12635065,0.0002988,2]
[362182241,1748070638397,-2575.12340995,0.0002988,2]
[362182242,1748070638406,-317.9436,0.000299,2]
[362182243,1748070638416,-2869.4416,0.000299,2]
[362182244,1748070638426,-200.0,0.00029905,2]
[362182245,1748070638435,-1798.11364593,0.00029975,2]
[362182246,1748070638444,-2000.0,0.0003,2]
[362182247,1748070638454,-71172.04788045,0.0003,35]
[362182248,1748070638464,-151.0,0.00030075,2]
[362182249,1748070638474,-693.3919763,0.00030075,2]
[362182250,1748070638484,-215.0738,0.00030157,2]
[362182251,1748070638494,-158.12,0.0003017,2]
[362182252,1748070638504,-571.15,0.000302,2]
[362182253,1748070638514,-5000.0,0.00030351,2]
[362182254,1748070638523,-2751.0,0.00030437,120]
[362182255,1748070638533,-1500.0,0.00030463,7]
[362182256,1748070638543,-500.0,0.00030466,7]
[362182257,1748070638552,-1798.1136459,0.00030522,2]
[362182258,1748070638562,-500.0,0.00030564,7]
[362182259,1748070638571,-571.15,0.000306,2]
[362182260,1748070638581,-500.0,0.00030617,7]
[362182261,1748070638591,-1500.0,0.00030619,7]
[362182262,1748070638600,-151.0,0.00030623,2]
[362182263,1748070638610,-719.04747942,0.00030623,2]
[362182264,1748070638619,-500.0,0.00030644,7]
[362182265,1748070638629,-1500.0,0.00030712,7]
[362182266,1748070638639,-1500.0,0.00030756,7]
[362182267,1748070638648,-1794.263,0.00030812,27]
[362182268,1748070638658,-187.42457593,0.00030812,27]
[362182270,1748070638667,-500.0,0.0003084,7]
[362182271,1748070638676,-1000.0,0.00030842,2]
[362182273,1748070638685,-2500.0,0.00030842,2]
[362182274,1748070638694,-156.587,0.00030896,2]
[362182275,1748070638704,-693.3919763,0.00030896,2]
[362182276,1748070638713,-150.0,0.000309,2]
[362182277,1748070638723,-1011.493187,0.00030942,4]
[362182279,1748070638731,-150.0,0.00030958,2]
[362182280,1748070638741,-500.0,0.00030964,7]
[362182281,1748070638750,-5134.41392947,0.00031,7]
[362182282,1748070638760,-211.33,0.00031008,2]
[362182283,1748070638769,-500.0,0.00031039,7]
[362182284,1748070638779,-500.0,0.00031061,7]
[362182285,1748070638788,-604.26130515,0.00031066,7]
[362182286,1748070638799,-1798.1136459,0.00031069,2]
[362182287,1748070638809,-500.0,0.00031082,7]
[362182288,1748070638823,-306.2887004,0.00031106,7]
[362182289,1748070638832,-500.0,0.00031122,7]
[362182290,1748070638842,-500.0,0.00031164,7]
[362182291,1748070638852,-500.0,0.00031164,7]
[362182292,1748070638863,-151.0,0.00031171,2]
[362182293,1748070638873,-745.65223616,0.00031171,2]
[362182294,1748070638883,-200.0,0.00031197,2]
[362182295,1748070638892,-353.35,0.00031233,2]
[362182296,1748070638902,-341.73,0.00031233,2]
[362182297,1748070638911,-571.15,0.000313,2]
[362182298,1748070638921,-517.573,0.00031353,2]
[362182299,1748070638931,-5167.37292042,0.00031421,2]
[362182300,1748070638940,-500.0,0.00031424,7]
[362182301,1748070638949,-223.0315306,0.00031526,2]
[362182302,1748070638959,-865.22892603,0.00031591,2]
[362182303,1748070638968,-1798.1136459,0.00031617,2]
[362182304,1748070638978,-228.97287844,0.00031719,2]
[362182305,1748070638992,-469.57708375,0.00031719,2]
[362182306,1748070639004,-303.66428515,0.00031719,2]
[362182307,1748070639014,-158.79818235,0.00031739,2]
[362182308,1748070639023,-999.6839054,0.00031739,2]
[362182309,1748070639033,-2000.0,0.0003174,3]
[362182310,1748070639042,-159.36619698,0.00031773,15]
[362182311,1748070639052,-500.0,0.00031795,2]
[362182312,1748070639061,-5000.0,0.00031796,2]
[362182313,1748070639070,-35963.1112,0.00031799,2]
[362182314,1748070639079,-2707.0606,0.00031799,10]
[362182315,1748070639089,-1000.0,0.00031799,2]
[362182316,1748070639099,-167.79948343,0.00031799,3]
[362182317,1748070639108,-500.0,0.000318,2]
[362182318,1748070639117,-400.0,0.000318,11]
[362182319,1748070639126,-1500.0,0.00031819,7]
[362182320,1748070639135,-18059.24749838,0.0003183,3]
[362182321,1748070639148,-59658.91529478,0.0003183,3]
[362182322,1748070639159,-4887.00638255,0.0003183,3]
[362182323,1748070639186,-6640.90223229,0.0003183,3]
[362182324,1748070639196,-500.0,0.00031839,2]
[362182325,1748070639205,-500.0,0.00031839,2]
[362182326,1748070639214,-127552.73935705,0.0003184,2]
[362182328,1748070639903,-9000.0,0.0003184,2]
[362182329,1748070639915,-18311.09590494,0.0003184,2]
[362182330,1748070639927,-1581.25616873,0.0003184,2]
[362182331,1748070639954,-3099.10039513,0.0003184,2]
[362182341,1748070642734,-7807.29397427,0.0003184,2]
[362182347,1748070643423,-7012.91296592,0.0003184,2]
[362182351,1748070645452,-11072.0,0.0003184,2]
[362182352,1748070645464,-537.67499775,0.0003184,2]
[362182353,1748070645495,-21050.81913621,0.0003184,2]
[362182354,1748070645504,-32821.18086378,0.00031869,3]
[362182355,1748070645516,-1866.04521996,0.00031869,3]
[362182356,1748070645576,-613.90225138,0.00031869,3]
[362182382,1748071190451,700.0,0.00027397,120]
[362182383,1748071230879,161.1,0.00013699,2]
[362182384,1748071422531,-161.1,0.00026027,2]
[362182385,1748071422552,-161.1,0.00027988,2]
[362182386,1748071422563,-677.8,0.00027988,2]
[362182387,1748071437232,250.0,0.00015,2]
[362182388,1748071438335,300.0,0.00017,2]
[362182389,1748071534079,-350.0,0.00019,2]
[362182390,1748071534108,-318.18658031,0.000199,2]
[362182391,1748071534135,-11331.81341969,0.0002,2]
[362182392,1748071545129,-300.0,0.00019999,2]
[362182393,1748071545153,-103767.30850419,0.0002,2]
[362182394,1748071547142,-52563.11594263,0.0002,2]
[362182395,1748071561760,593.78643651,8e-05,2]
[362182396,1748071561787,13.20834395,8e-05,2]
[362182397,1748071589618,-1354.628722,0.000199,2]
[362182398,1748071589641,-874.97811542,0.000199,3]
[362182399,1748071589668,-1770.39316258,0.0002,2]
[362182400,1748071590089,-227.11334826,0.0002,2]
[362182402,1748071622290,-266.30283643,0.0001878,2]
[362182403,1748071625622,-201.0,0.0001878,2]
[362182404,1748071626871,-175.85434482,0.0001878,2]
[362182405,1748071630583,-180.57573884,0.0001878,2]
[362182406,1748071632564,-238.851,0.0001878,2]
[362182407,1748071632978,205.0,9.8e-05,2]
[362182408,1748071635018,-165.02713002,0.0001878,2]
[362182409,1748071640166,-7253.66169394,0.0001878,2]
[362182410,1748071640257,-212.05915832,0.0001878,2]
[362182411,1748071643086,-42503.80410045,0.0001878,2]
[362182412,1748071643157,-162.91426321,0.0001878,2]
[362182413,1748071645933,-192.70470849,0.0001878,2]
[362182414,1748071647090,-1486.13297319,0.0001878,2]
[362182415,1748071648089,-121093.81619713,0.0001878,2]
[362182416,1748071648109,-6836.98987742,0.00019899,2]
[362182417,1748071648133,-482.0791932,0.00019973,2]
[362182418,1748071648153,-500.71047097,0.00019973,2]
[362182419,1748071648176,-500.0,0.00019973,2]
[362182420,1748071648198,-300.0,0.00019998,2]
[362182421,1748071648222,-500.0,0.00019999,2]
[362182422,1748071648243,-500.0,0.00019999,2]
[362182423,1748071648270,-98.17333591,0.00019999,2]
[362182424,1748071648302,-401.82666409,0.00019999,2]
[362182425,1748071648324,-217.44474819,0.00019999,2]
[362182426,1748071648345,-500.0,0.00019999,2]
[362182427,1748071648374,-475.34712757,0.00019999,2]
[362182428,1748071661519,-24.65287243,0.00019999,2]
[362182429,1748071661544,-500.0,0.00019999,2]
[362182430,1748071661567,-501.33967342,0.00019999,2]
[362182431,1748071661590,-500.0,0.00019999,2]
[362182432,1748071661612,-384.13453849,0.00019999,2]
[362182433,1748071661634,-594.25575488,0.00019999,2]
[362182434,1748071661658,-11495.61716078,0.0002,2]
[362182435,1748071670866,1511.07555958,0.0001,2]
[362182436,1748071672524,611.33382924,0.00015,2]
[362182437,1748071673885,-205.0,0.000181,2]
[362182438,1748071677721,-223.14565518,0.000181,2]
[362182439,1748071680323,-168.75,0.000181,2]
[362182440,1748071681870,-284.28,0.000181,2]
[362182441,1748071687591,-160.19267466,0.000181,2]
[362182442,1748071689976,200.0,0.0001634,2]
[362182443,1748071693932,-254.6993565,0.000181,2]
[362182444,1748071708895,1697.0850521,0.000149,2]
[362182445,1748071753106,-1021.72979894,0.00018,2]
[362182461,1748071831689,-129.98401311,0.00018,2]
[362182462,1748071831699,-250.0,0.0001805,2]
[362182463,1748071831708,-426.48144987,0.000181,2]
[362182464,1748071831718,-200.0,0.000198,2]
[362182465,1748071831728,-250.0,0.000198,2]
[362182466,1748071831736,-261.89291555,0.00019873,2]
[362182467,1748071831747,-1200.0,0.00019899,2]
[362182468,1748071831756,-712.50335403,0.000199,2]
[362182476,1748071832031,-3145.24420147,0.000199,2]
[362182477,1748071832040,-300.0,0.00019972,2]
[362182478,1748071832051,-500.0,0.00019973,2]
[362182479,1748071832060,-169.88995526,0.00019973,2]
[362182480,1748071832069,-159.3829952,0.00019973,2]
[362182481,1748071832079,-288.17669469,0.00019973,2]
[362182482,1748071832088,-170.48196525,0.00019973,2]
[362182483,1748071832098,-500.0,0.00019973,2]
[362182484,1748071832108,-500.0,0.00019973,2]
[362182485,1748071832117,-501.8266559,0.00019973,2]
[362182486,1748071832127,-500.0,0.00019973,2]
[362182487,1748071832137,-500.0,0.00019973,2]
[362182488,1748071832147,-177.13952832,0.00019999,2]
[362182489,1748071832156,-166.81551927,0.00019999,2]
[362182490,1748071832167,-75403.34335464,0.0002,2]
[362182491,1748071832215,-401.23857953,0.0002,2]
[362182492,1748071832226,-9165.74690149,0.0002,2]
[362182493,1748071832237,-63832.94895519,0.0002,2]
[362182494,1748071832263,-44865.33959504,0.0002,2]
[362182495,1748071832274,-559.5186477,0.0002,2]
[362182496,1748071832285,-14662.34498423,0.0002,2]
[362182497,1748071832299,-8803.62901673,0.0002,2]
[362182498,1748071832310,-386.44996,0.0002,2]
[362182499,1748071832338,-5008.53813225,0.0002,2]
[362182500,1748071832350,-4050.0,0.0002,2]
[362182501,1748071832362,-3529.05961605,0.0002,2]
[362182502,1748071832373,-6099.9999999,0.0002,2]
[362182503,1748071832385,-5880.0,0.0002,2]
[362182504,1748071832395,-3550.000005,0.0002,2]
[362182505,1748071832407,-1300.0,0.0002,2]
[362182506,1748071832446,-1141.37485662,0.0002,2]
[362182509,1748071837532,-300.0,0.00019999,2]
[362182510,1748071837543,-5736.74016914,0.0002,2]
[362182511,1748071837560,-82177.96342065,0.0002,2]
[362182512,1748071837601,-6584.79418036,0.0002,2]
[362182513,1748071837617,-5786.30309549,0.0002,2]
[362182514,1748071837632,-26103.7775179,0.0002,2]
[362182515,1748071837644,-120547.97864589,0.0002,2]
[362182516,1748071838006,-775.44461026,0.0002,2]
[362182517,1748071838148,-4574.49178753,0.0002,2]
[362182518,1748071838161,-1988.42,0.0002,2]
[362182519,1748071838199,-254.35520314,0.0002,2]
[362182520,1748071838214,-1456.2075135,0.0002,2]
[362182521,1748071838228,-425.84867621,0.0002,2]
[362182522,1748071838264,-206267.59777191,0.0002,2]
[362182698,1748071839981,-428389.20260297,0.0002,2]
[362182700,1748071839991,-280.96,0.0002,2]
[362182702,1748071840000,-200.0,0.0002045,2]
[362182704,1748071840009,-500.0,0.00020521,2]
[362182706,1748071840019,-500.0,0.00020521,2]
[362182708,1748071840028,-246.59563057,0.00020521,2]
[362182710,1748071840039,-400.0,0.00021,2]
[362182713,1748071840056,-3857.74755549,0.00021567,2]
[362182715,1748071840069,-1200.0,0.00021774,2]
[362182717,1748071840079,-420.0,0.00021777,2]
[362182719,1748071840088,-208.94949261,0.000218,6]
[362182721,1748071840097,-453.83794619,0.00021918,2]
[362182723,1748071840106,-150.0,0.00021944,7]
[362182725,1748071840115,-250.0,0.00022,2]
[362182727,1748071840124,-200.0,0.00022,2]
[362182729,1748071840133,-450.0,0.00023,2]
[362182731,1748071840142,-2751.0,0.00023004,2]
[362182733,1748071840151,-3857.74755549,0.00023233,2]
[362182735,1748071840160,-290.0,0.00023712,2]
[362182737,1748071840172,-5000.00082184,0.00024,5]
[362182739,1748071840182,-383.13515144,0.0002479,2]
[362182741,1748071840191,-164167.42694314,0.000248,3]
[362182748,1748071840240,-84259.39216262,0.000248,3]
[362182750,1748071840252,-1981.9999998,0.000248,3]
[362182775,1748071840480,-408.736,0.000248,3]
[362182777,1748071840491,-1917.37386818,0.000248,3]
[362182781,1748071840517,-9096.64373114,0.000248,3]
[362182783,1748071840528,-8947.21879473,0.000248,3]
[362182785,1748071840539,-8943.78386462,0.000248,3]
[362182787,1748071840550,-9077.54866152,0.000248,3]
[362182789,1748071840561,-8943.84023489,0.000248,3]
[362182791,1748071840572,-342.108,0.000248,3]
[362182795,1748071840597,-875.81996469,0.000248,3]
[362182797,1748071840608,-686.1,0.000248,3]
[362182799,1748071840619,-1202.799999,0.000248,3]
[362182801,1748071840631,-1100.0,0.000248,3]
[362183074,1748071843038,-96846.53925967,0.000248,3]
[362183077,1748071843292,-280.96,0.000248,7]
[362183079,1748071843302,-150.82,0.0002489,2]
[362183081,1748071843311,-4350.91328591,0.000249,3]
[362183302,1748071845469,-86363.9215564,0.000249,3]
[362183320,1748071845628,-1000.0,0.000249,3]
[362183338,1748071845798,-772.06099494,0.000249,3]
[362183342,1748071845822,-14379.63349893,0.000249,3]
[362183363,1748071846013,-176055.96522882,0.000249,3]
[362183365,1748071846022,-3857.74755549,0.000249,2]
[362183367,1748071846032,-500.0,0.00025,2]
[362183369,1748071846041,-290.83024007,0.00025721,2]
[362183371,1748071846050,-3857.74755549,0.00026567,2]
[362183373,1748071846059,-187.02,0.0002696,2]
[362183375,1748071846069,-14994.3816962,0.00027,2]
[362183377,1748071846078,-1068.82133219,0.0002739,2]
[362183379,1748071846088,-44508.20351689,0.0002739,2]
[362183381,1748071846097,-151.0,0.0002739,7]
[362183383,1748071846106,-151.0,0.0002739,7]
[362183385,1748071846116,-154.086498,0.0002739,7]
[362183387,1748071846125,-151.0,0.0002739,7]
[362183389,1748071846134,-151.0,0.0002739,7]
[362183391,1748071846143,-151.0,0.0002739,7]
[362183393,1748071846153,-151.851968,0.0002739,7]
[362183395,1748071846162,-151.0,0.0002739,7]
[362183397,1748071846173,-151.0,0.0002739,7]
[362183399,1748071846183,-151.0,0.0002739,7]
[362183401,1748071846192,-151.0,0.0002739,7]
[362183403,1748071846201,-500.0,0.00027397,2]
[362183405,1748071846213,-500.0,0.00027397,2]
[362183407,1748071846222,-500.0,0.00027397,2]
[362183409,1748071846231,-193.02,0.00027397,2]
[362183411,1748071846241,-211.33,0.00027397,2]
[362183414,1748071846251,-151.0,0.00027988,2]
[362183416,1748071846260,-103.89,0.00027988,2]
[362183419,1748071846271,-3857.74755549,0.00028233,2]
[362183421,1748071846280,-156.587,0.00028536,2]
[362183423,1748071846290,-997.47966167,0.00028593,2]
[362183426,1748071846309,-264.52033833,0.00028593,2]
[362183428,1748071846318,-1496.388,0.00028593,2]
[362183430,1748071846327,-922.0,0.00028593,2]
[362183432,1748071846336,-592.438,0.00028593,2]
[362183434,1748071846345,-555.0,0.00028593,2]
[362183436,1748071846354,-162.380719,0.00029084,2]
[362183438,1748071846363,-158.89,0.00029206,2]
[362183440,1748071846372,-206.0,0.00029306,2]
[362183442,1748071846382,-205.99998,0.00029306,2]
[362183444,1748071846391,-158.12,0.00029331,2]
[362183446,1748071846401,-280.96,0.000294,7]
[362183448,1748071846411,-168.3888056,0.00029632,2]
[362183450,1748071846420,-166.87,0.00029634,2]
[362183452,1748071846430,-621.74334166,0.00029748,2]
[362183454,1748071846439,-515.2907,0.00029798,2]
[362183455,1748071846448,-159.88042587,0.000298,15]
[362183458,1748071846458,-14146.1247283,0.00029871,3]
[362183460,1748071846468,-151.0,0.00029882,2]
[362183462,1748071846477,-156.0,0.00029882,2]
[362183463,1748071846488,-151.0,0.00029882,2]
[362183465,1748071846497,-351.00496126,0.00029882,2]
[362183915,1748072018000,430.75,0.00027064,120]
[362183917,1748072360842,159.17,0.00013699,2]
[362183919,1748072648176,3159.4320156,0.0002739,120]
[362183920,1748072703151,150.0,0.00027397,120]
[362183921,1748072826129,-151.0,0.00019972,2]
[362183922,1748072826152,-200.0,0.00019972,2]
[362183923,1748072826172,-200.0,0.00019972,2]
[362183924,1748072826406,-250.0,0.00019972,2]
[362183925,1748072826427,-250.0,0.00019999,2]
[362183926,1748072826449,-156.587,0.0002052,2]
[362183927,1748072826470,-116.73513329,0.00021068,2]
[362183928,1748072840143,-45.64558571,0.00021068,2]
[362183929,1748072840164,-151.0,0.00021548,2]
[362183930,1748072840184,-168.3888056,0.00021616,2]
[362183931,1748072840203,-187.02,0.0002195,2]
[362183932,1748072840224,-200.0,0.0002197,2]
[362183933,1748072840244,-250.0,0.0002197,2]
[362183934,1748072840265,-200.0,0.0002197,2]
[362183935,1748072840285,-136.33506181,0.00022164,2]
[362183936,1748072848100,-151.0,0.00019972,2]
[362183937,1748072848122,-300.0,0.00023872,2]
[362183938,1748072848146,-37.73128573,0.00023872,2]
[362183939,1748072904471,449.0,0.00027397,120]
[362183945,1748073031860,-156.587,0.0002052,2]
[362183946,1748073031870,-200.0,0.00020794,2]
[362183947,1748073031880,-250.0,0.00020794,2]
[362183948,1748073031889,-162.380719,0.00021068,2]
[362183949,1748073031899,-168.3888056,0.00021616,2]
[362183950,1748073031909,-200.0,0.00021616,2]
[362183951,1748073031918,-250.0,0.00021616,2]
[362183952,1748073031928,-174.61919141,0.00022164,2]
[362183953,1748073031938,-200.0,0.00022572,2]
[362183954,1748073031948,-250.0,0.00022572,2]
[362183955,1748073031957,-181.08010149,0.00022712,2]
[362183956,1748073031967,-187.78006525,0.0002326,2]
[362183957,1748073031977,-202.65861465,0.00023697,2]
[362183958,1748073031986,-194.72792766,0.00023808,2]
[362183959,1748073031995,-540.77655297,0.00023872,2]
[362183960,1748073032008,-298.695,0.00023872,2]
[362183961,1748073032045,-360.52844703,0.00023872,2]
[362183962,1748073032055,-159.4117376,0.00023873,2]
[362183963,1748073032065,-159.4117376,0.00023873,2]
[362183964,1748073032076,-55.70618963,0.00023873,2]
[362183965,1748073032087,-310.07538915,0.00023873,2]
[362183966,1748073032099,-156.7689177,0.00023873,2]
[362183967,1748073032110,-159.4149312,0.00023873,2]
[362183968,1748073032119,-159.4117376,0.00023873,2]
[362183969,1748073032129,-66.8733985,0.00023873,2]
[362183970,1748073032141,-92.5415327,0.00023873,2]
[362183971,1748073032150,-159.4117376,0.00023873,2]
[362183972,1748073032160,-159.4117376,0.00023873,2]
[362183973,1748073032170,-358.6835952,0.00023873,2]
[362183974,1748073032179,-159.3798016,0.00023873,2]
[362183975,1748073032189,-159.4117376,0.00023873,2]
[362183976,1748073032199,-159.4117376,0.00023873,2]
[362183977,1748073032208,-159.4101408,0.00023873,2]
[362183978,1748073032218,-159.4021568,0.00023873,2]
[362183979,1748073032228,-159.4149312,0.00023873,2]
[362183980,1748073032237,-159.3861888,0.00023873,2]
[362183981,1748073032247,-159.3989632,0.00023873,2]
[362183982,1748073032256,-159.4117376,0.00023873,2]
[362183983,1748073032266,-159.4069472,0.00023873,2]
[362183984,1748073032276,-199.264672,0.00023873,2]
[362183985,1748073032285,-159.3989632,0.00023873,2]
[362183987,1748073032295,-159.3861888,0.00023873,2]
[362183989,1748073032303,-159.4053504,0.00023873,2]
[362183991,1748073032313,-164.62119403,0.00023873,2]
[362183993,1748073032322,-159.4117376,0.00023873,2]
[362183995,1748073032331,-501.7285471,0.00023873,2]
[362183997,1748073032340,-280.43518902,0.00023873,2]
[362183999,1748073032350,-501.62452173,0.00023873,2]
[362184001,1748073032359,-159.368624,0.00023873,2]
[362184003,1748073032368,-159.392576,0.00023873,2]
[362184004,1748073032377,-500.0,0.00023873,2]
[362184006,1748073032387,-548.19333295,0.00023873,2]
[362184008,1748073032396,-159.4117376,0.00023873,2]
[362184010,1748073032405,-159.44372129,0.00023873,2]
[362184012,1748073032414,-458.16541731,0.00023873,2]
[362184014,1748073032423,-159.4117376,0.00023873,2]
[362184016,1748073032433,-500.0,0.00023873,2]
[362184019,1748073032442,-501.58855612,0.00023873,2]
[362184021,1748073032451,-500.0,0.00023873,2]
[362184023,1748073032460,-13893.82674957,0.0002389,2]
[362184025,1748073032470,-500.0,0.00023899,2]
[362184027,1748073032479,-171.57171885,0.00023899,2]
[362184028,1748073032488,-297.16083132,0.00023899,2]
[362184031,1748073032497,-500.0,0.00023899,2]
[362184033,1748073032507,-23245.92549738,0.000239,2]
[362184035,1748073032518,-2840.47319302,0.000239,2]
[362184037,1748073032531,-10622.16061818,0.000239,2]
[362184042,1748073032571,-11355.69533599,0.000239,2]
[362184044,1748073032583,-966.53003843,0.000239,2]
[362184047,1748073032595,-4450.00000001,0.000239,2]
[362184049,1748073032606,-1335.58284015,0.000239,2]
[362184051,1748073032617,-5016.05705625,0.000239,2]
[362184053,1748073032630,-332.02971008,0.000239,2]
[362184056,1748073032642,-422.27161926,0.000239,2]
[362184058,1748073032653,-1399.93190357,0.000239,2]
[362184060,1748073032664,-7538.41011593,0.000239,2]
[362184062,1748073032675,-1091.65558616,0.000239,2]
[362184064,1748073032686,-689.92839864,0.000239,2]
[362184066,1748073032697,-372.51000098,0.000239,2]
[362184594,1748073037895,-23546.43577076,0.000239,2]
[362184596,1748073037905,-161.09,0.0002392,2]
[362184598,1748073037914,-164.0,0.00024023,2]
[362184600,1748073037923,-250.0,0.00024236,2]
[362184602,1748073037932,-945.33,0.00024265,2]
[362184604,1748073037942,-201.93286099,0.00024356,2]
[362184606,1748073037951,-1500.0,0.0002441,2]
[362184608,1748073037961,-300.86145054,0.00024421,2]
[362184610,1748073037970,-500.0,0.00024421,2]
[362184612,1748073037979,-164.72,0.00024505,2]
[362184613,1748073037989,-510.94,0.00024567,2]
[362184614,1748073037998,-206.42,0.00024585,2]
[362184615,1748073038008,-150.0,0.00024677,7]
[362184616,1748073038017,-150.0,0.00024799,2]
[362184617,1748073038027,-1124.26,0.00024874,2]
[362184619,1748073038037,-205.12940996,0.000249,12]
[362184620,1748073038046,-209.40437684,0.00024904,2]
[362184621,1748073038055,-159.17,0.00024907,2]
[362184622,1748073038065,-500.0,0.00024932,2]
[362184624,1748073038074,-500.0,0.00024932,2]
[362184626,1748073038083,-500.0,0.00024932,2]
[362184628,1748073038093,-502.0214554,0.00025394,2]
[362184630,1748073038103,-217.15233878,0.00025452,2]
[362184632,1748073038112,-204.84570301,0.00026,2]
[362184634,1748073038121,-225.18697532,0.00026,2]
[362184636,1748073038131,-401.0,0.0002601,2]
[362184638,1748073038141,-150.0,0.00026169,2]
[362184640,1748073038150,-233.51889341,0.00026548,2]
[362184642,1748073038159,-153.41,0.00026735,2]
[362184644,1748073038169,-1000.0,0.00026757,2]
[362184646,1748073038178,-12963.7142431,0.00026781,7]
[362184648,1748073038187,-8903.13292343,0.00026847,2]
[362184650,1748073038197,-400.17,0.000269,3]
[362184653,1748073038208,-23900.0,0.0002691,2]
[362184655,1748073038218,-8555.27,0.00026948,2]
[362184657,1748073038227,-170.23,0.0002696,2]
[362184659,1748073038236,-507.12928634,0.00026973,2]
[362184661,1748073038245,-159.408544,0.00026973,2]
[362184663,1748073038255,-170.23,0.00026983,2]
[362184665,1748073038264,-170.23,0.00027005,2]
[362184667,1748073038275,-2313.55,0.00027005,2]
[362184669,1748073038285,-170.23,0.00027028,2]
[362184671,1748073038294,-170.23,0.0002705,2]
[362184673,1748073038303,-170.23,0.00027073,2]
[362184675,1748073038313,-170.23,0.00027095,2]
[362184677,1748073038322,-242.15909246,0.00027096,2]
[362184680,1748073038331,-1124.26,0.00027138,2]
[362184682,1748073038341,-500.0,0.00027397,2]
[362184684,1748073038350,-500.0,0.00027397,2]
[362184686,1748073038359,-500.0,0.00027397,2]
[362184687,1748073038368,-500.0,0.00027397,2]
[362184689,1748073038377,-165.65,0.00027397,2]
[362184692,1748073038391,-160.42,0.00027397,2]
[362184693,1748073038407,-676.0,0.000274,2]
[362184695,1748073038426,-150.0,0.00027539,2]